bitfinex-derivatives/quotes_SOLF0:USTF0_20260202
["timestamp","ask_amount","ask_price","bid_price","bid_amount"]
[1770003276763,145.4198,96.374,96.265,155.56406529]
[1770003276962,145.3638,96.412,96.308,145.518]
[1770003277162,33.44365509,96.44,96.291,145.5438]
[1770003277163,145.3774,96.403,96.291,145.5438]
[1770003277467,145.3956,96.391,96.281,145.56]
[1770003277669,145.4042,96.385,96.27,145.5765]
[1770003277867,145.314,96.445,96.334,145.4802]
[1770003278076,145.2306,96.5,96.32,145.4999]
[1770003278077,145.3312,96.433,96.32,145.4999]
[1770003278274,145.3667,96.41,96.31,145.5156]
[1770003278471,33.44365509,96.43,96.344,145.4641]
[1770003278674,145.3187,96.442,96.333,145.481]
[1770003278874,145.2474,96.489,96.378,145.4127]
[1770003279079,145.2611,96.48,96.377,145.4142]
[1770003279274,145.3135,96.445,96.346,145.4607]
[1770003279575,145.3503,96.421,96.32,145.5]
[1770003279777,145.3503,96.421,96.31,33.44365509]
[1770003279778,145.3327,96.432,96.33,145.4862]
[1770003279973,145.3327,96.432,96.272,145.5726]
[1770003279974,145.263,96.479,96.373,145.4209]
[1770003280169,145.263,96.479,96.383,145.4057]
[1770003280374,145.238,96.495,96.388,145.3976]
[1770003280570,145.1903,96.527,96.427,145.3392]
[1770003280775,33.44365509,96.53,96.436,145.325]
[1770003280974,145.226,96.503,96.411,145.3635]
[1770003281174,145.226,96.503,96.397,145.3847]
[1770003281373,33.44365509,96.53,96.43,145.3349]
[1770003281578,145.1927,96.525,96.43,145.3349]
[1770003281772,145.1495,96.554,96.453,145.3005]
[1770003281971,145.1495,96.554,96.391,9.79625434]
[1770003281972,145.1541,96.551,96.461,145.2882]
[1770003282373,33.44365509,96.56,96.415,145.3571]
[1770003282374,145.2098,96.514,96.415,145.3571]
[1770003282675,1.80356671,96.547,96.42,145.3491]
[1770003282676,145.2081,96.515,96.42,145.3491]
[1770003282975,145.2081,96.515,96.358,145.4425]
[1770003282976,145.1606,96.547,96.45,145.3048]
[1770003283169,145.1102,96.58,96.477,145.264]
[1770003283371,145.1009,96.586,96.487,145.2493]
[1770003283574,145.1009,96.586,96.419,145.3509]
[1770003283575,145.0454,96.623,96.527,145.1888]
[1770003283773,33.44365509,96.65,96.477,145.2642]
[1770003283774,145.0293,96.634,96.536,145.1747]
[1770003283978,144.9777,96.668,96.572,145.1215]
[1770003284176,144.9777,96.668,96.531,9.7841104]
[1770003284177,144.9643,96.677,96.578,145.1125]
[1770003284371,144.9817,96.666,96.566,145.1299]
[1770003284572,144.8798,96.734,96.512,145.2116]
[1770003284573,144.9583,96.681,96.58,145.1085]
[1770003284775,145.0036,96.651,96.552,145.1512]
[1770003284976,33.44365509,96.68,96.549,145.1549]
[1770003284977,145.0055,96.65,96.549,145.1549]
[1770003285272,1.80128419,96.667,96.548,145.1574]
[1770003285477,1.80128419,96.667,96.558,145.1418]
[1770003285478,144.9897,96.66,96.558,145.1418]
[1770003285683,33.44365509,96.68,96.587,145.0987]
[1770003285880,144.9417,96.692,96.591,145.093]
[1770003286081,144.9114,96.713,96.611,145.0625]
[1770003286283,144.9313,96.699,96.597,145.0827]
[1770003286480,144.9503,96.687,96.58,145.1084]
[1770003286679,144.9184,96.708,96.61,145.0635]
[1770003286978,33.44365509,96.74,96.571,9.7627404]
[1770003286979,144.938,96.695,96.598,145.0813]
[1770003287375,144.9085,96.715,96.611,145.0624]
[1770003287579,33.44365509,96.71,96.582,145.1061]
[1770003287781,144.8976,96.722,96.615,145.0562]
[1770003288084,144.8976,96.722,96.579,9.7626314]
[1770003288085,144.8996,96.72,96.611,145.062]
[1770003288282,144.8996,96.72,96.62,145.0482]
[1770003288479,144.9718,96.672,96.572,145.1204]
[1770003288676,144.9704,96.673,96.572,145.1207]
[1770003288879,144.9759,96.67,96.569,145.125]
[1770003289082,144.9398,96.694,96.593,145.0888]
[1770003289385,144.9904,96.66,96.557,145.1439]
[1770003289578,144.9877,96.662,96.559,145.1398]
[1770003289780,33.44365509,96.68,96.559,145.1398]
[1770003289980,9.3196,96.672,96.559,145.1407]
[1770003290184,144.9805,96.666,96.558,145.1415]
[1770003290581,145.0119,96.646,96.547,145.1587]
[1770003290787,145.0119,96.646,96.546,9.76584835]
[1770003290788,144.9793,96.667,96.566,145.1294]
[1770003291081,144.978,96.668,96.566,145.1294]
[1770003291286,144.978,96.668,96.575,145.1159]
[1770003291486,144.978,96.668,96.562,145.1364]
[1770003291684,144.978,96.668,96.572,145.1209]
[1770003291886,1.80110706,96.697,96.559,145.141]
[1770003291887,144.9927,96.658,96.559,145.141]
[1770003292186,144.9819,96.666,96.573,145.119]
[1770003292388,144.9819,96.666,96.559,145.1399]
[1770003292687,144.9786,96.668,96.57,145.1233]
[1770003292982,144.9958,96.656,96.557,145.1437]
[1770003293181,144.9974,96.655,96.556,145.1454]
[1770003293388,145.0162,96.643,96.546,9.76584835]
[1770003293683,145.0896,96.594,96.501,145.2269]
[1770003293879,145.0814,96.599,96.5,145.2289]
[1770003294079,145.0345,96.631,96.531,145.182]
[1770003294290,144.916,96.71,96.552,145.1506]
[1770003294291,145.0004,96.653,96.552,145.1506]
[1770003294485,9.3231,96.636,96.533,145.179]
[1770003294687,145.0596,96.614,96.523,145.1951]
[1770003294884,145.0461,96.623,96.524,154.92239792]
[1770003295092,145.0243,96.637,96.536,145.1747]
[1770003295289,145.0088,96.648,96.546,145.1599]
[1770003295488,145.0538,96.618,96.526,9.72919792]
[1770003295682,145.0291,96.634,96.537,145.1728]
[1770003295887,145.0449,96.624,96.526,9.72919792]
[1770003296084,145.0252,96.637,96.538,145.1717]
[1770003296284,145.0092,96.647,96.548,145.1568]
[1770003296591,145.0459,96.623,96.529,9.51094603]
[1770003296889,145.0755,96.603,96.509,145.2161]
[1770003297391,145.0598,96.614,96.508,145.2167]
[1770003297787,145.0569,96.616,96.517,145.2031]
[1770003298184,33.44365509,96.61,96.394,9.45844466]
[1770003298496,145.1414,96.559,96.456,145.2958]
[1770003298692,145.1414,96.559,96.396,145.3865]
[1770003298693,145.0994,96.587,96.493,145.2392]
[1770003299191,145.0994,96.587,96.487,145.2488]
[1770003299493,145.1302,96.567,96.472,145.2716]
[1770003299887,145.1061,96.583,96.484,145.2535]
[1770003300387,145.1061,96.583,96.425,145.3414]
[1770003300388,145.0725,96.605,96.506,145.2195]
[1770003300587,33.44365509,96.66,96.449,145.3066]
[1770003300588,145.0258,96.636,96.537,145.1733]
[1770003300790,145.0291,96.634,96.537,145.1733]
[1770003301089,145.0346,96.63,96.532,145.1815]
[1770003301290,145.0133,96.645,96.549,145.1549]
[1770003301491,145.0133,96.645,96.48,33.44365509]
[1770003301492,145.2963,96.456,96.38,33.44365509]
[1770003301689,33.44365509,96.52,96.382,145.4073]
[1770003301989,145.2345,96.497,96.36,33.44365509]
[1770003302188,145.2345,96.497,96.32,124.0]
[1770003302189,145.3736,96.405,96.28,33.44365509]
[1770003302389,145.3736,96.405,96.203,145.6776]
[1770003302390,145.4632,96.346,96.329,8.636e-05]
[1770003302588,145.4613,96.347,96.329,8.636e-05]
[1770003302790,145.4354,96.364,96.329,8.636e-05]
[1770003302992,145.3493,96.421,96.329,8.636e-05]
[1770003302993,145.4378,96.363,96.329,8.636e-05]
[1770003303195,145.4216,96.373,96.329,8.636e-05]
[1770003303391,145.2796,96.467,96.366,145.4316]
[1770003303592,145.2882,96.462,96.367,4.72339441]
[1770003303897,145.2882,96.462,96.329,8.636e-05]
[1770003303898,145.3216,96.44,96.341,4.72339441]
[1770003304095,33.44365509,96.47,96.35,145.456]
[1770003304096,145.2972,96.456,96.35,145.456]
[1770003304291,145.3759,96.404,96.329,8.636e-05]
[1770003304492,145.3906,96.394,96.329,8.636e-05]
[1770003304693,145.3828,96.399,96.329,8.636e-05]
[1770003304893,145.3732,96.405,96.329,8.636e-05]
[1770003305087,145.3322,96.433,96.331,145.4846]
[1770003305288,145.3676,96.409,96.329,8.636e-05]
[1770003305487,145.3505,96.42,96.329,8.636e-05]
[1770003305690,145.2603,96.48,96.329,8.636e-05]
[1770003305691,145.3388,96.428,96.329,8.636e-05]
[1770003305894,145.362,96.413,96.329,8.636e-05]
[1770003306094,145.3181,96.442,96.345,145.4621]
[1770003306290,145.2676,96.475,96.377,145.415]
[1770003306494,145.2735,96.472,96.377,145.415]
[1770003306689,145.1277,96.568,96.371,4.83174836]
[1770003306893,434.9307,96.669,96.445,145.3127]
[1770003306894,145.1612,96.546,96.445,145.3127]
[1770003307095,145.2065,96.516,96.418,145.3524]
[1770003307291,145.1196,96.574,96.405,4.83174836]
[1770003307292,145.234,96.498,96.406,145.3714]
[1770003307497,145.1679,96.542,96.44,145.3192]
[1770003307696,145.1815,96.533,96.43,145.3348]
[1770003307895,145.1656,96.543,96.441,145.3176]
[1770003308195,145.1656,96.543,96.4,157.44365509]
[1770003308196,145.1484,96.555,96.46,145.2896]
[1770003308497,145.1243,96.571,96.471,145.2732]
[1770003308690,145.1335,96.565,96.466,145.2806]
[1770003308889,145.1907,96.527,96.437,4.83918954]
[1770003309094,145.1648,96.544,96.443,145.3147]
[1770003309397,145.1039,96.584,96.4,33.44365509]
[1770003309398,145.2044,96.517,96.414,145.3581]
[1770003309697,145.2408,96.493,96.404,145.3734]
[1770003309898,145.2314,96.5,96.404,145.3735]
[1770003310096,145.213,96.512,96.42,145.3493]
[1770003310298,145.2364,96.496,96.394,145.3894]
[1770003310498,145.2364,96.496,96.405,145.3718]
[1770003310795,145.2392,96.494,96.405,145.3726]
[1770003311099,33.44365509,96.53,96.394,145.3888]
[1770003311100,145.2517,96.486,96.394,145.3888]
[1770003311300,145.2442,96.491,96.397,145.3849]
[1770003311496,145.2945,96.458,96.366,145.4314]
[1770003311701,145.2914,96.46,96.368,145.4286]
[1770003311899,145.3051,96.451,96.361,4.82299142]
[1770003312104,145.3033,96.452,96.356,145.4455]
[1770003312303,145.3073,96.449,96.352,145.452]
[1770003312601,145.3073,96.449,96.326,4.71512117]
[1770003312602,145.2466,96.489,96.39,145.395]
[1770003312800,145.2333,96.498,96.391,145.393]
[1770003312994,145.2333,96.498,96.401,145.3785]
[1770003313194,33.44365509,96.52,96.401,145.3784]
[1770003313195,145.2316,96.499,96.401,145.3784]
[1770003313398,145.2618,96.479,96.383,145.4056]
[1770003313601,145.2911,96.46,96.368,145.428]
[1770003313800,145.2911,96.46,96.365,145.4324]
[1770003314104,396.75653955,96.538,96.34,33.44365509]
[1770003314105,145.2356,96.497,96.402,145.3763]
[1770003314307,145.2158,96.51,96.408,145.3676]
[1770003314505,145.2052,96.517,96.416,145.3553]
[1770003314806,145.2029,96.518,96.417,145.3547]
[1770003315201,145.2223,96.506,96.407,9.3452]
[1770003315501,145.2223,96.506,96.35,145.4557]
[1770003315502,145.1863,96.529,96.374,145.4188]
[1770003315810,145.1863,96.529,96.297,145.5351]
[1770003315811,145.2044,96.517,96.419,145.3505]
[1770003315994,145.1726,96.539,96.44,145.3188]
[1770003316197,145.1603,96.547,96.45,145.304]
[1770003316403,145.2246,96.504,96.421,4.71246657]
[1770003316599,145.2389,96.495,96.392,145.3917]
[1770003316798,154.5723,96.497,96.393,9.3465]
[1770003317004,145.2503,96.487,96.393,9.3465]
[1770003317202,145.1128,96.578,96.309,145.5176]
[1770003317203,145.3003,96.454,96.36,145.4404]
[1770003317403,145.2916,96.46,96.362,145.4376]
[1770003317707,145.2472,96.489,96.392,145.3914]
[1770003317911,145.186,96.53,96.431,145.3326]
[1770003318201,145.186,96.53,96.353,145.4512]
[1770003318202,50.8094651,96.6,96.487,145.2492]
[1770003318406,145.1596,96.547,96.454,145.2991]
[1770003318599,145.1481,96.555,96.464,145.2841]
[1770003318801,145.1481,96.555,96.387,558.999]
[1770003318802,145.1945,96.524,96.439,4.68103837]
[1770003319001,145.2185,96.508,96.409,145.3665]
[1770003319203,145.2602,96.48,96.405,4.68103837]
[1770003319402,145.2374,96.495,96.405,4.68103837]
[1770003319598,413.62,96.548,96.39,145.3954]
[1770003319599,145.25,96.487,96.39,145.3954]
[1770003319800,50.8094651,96.5,96.379,145.4119]
[1770003320005,145.2633,96.478,96.379,145.4119]
[1770003320206,145.2817,96.466,96.368,145.4285]
[1770003320405,145.3007,96.453,96.357,145.444]
[1770003320613,145.347,96.423,96.339,4.77170032]
[1770003320812,145.3746,96.404,96.313,145.5107]
[1770003321013,145.3736,96.405,96.305,4.77170032]
[1770003321212,145.3933,96.392,96.297,145.5349]
[1770003321410,145.3421,96.426,96.33,145.485]
[1770003321612,145.2619,96.479,96.257,145.596]
[1770003321613,9.3413,96.448,96.353,145.4506]
[1770003321913,145.3051,96.451,96.35,145.4551]
[1770003322105,9.3442,96.418,96.311,9.3545]
[1770003322310,145.3882,96.395,96.304,145.525]
[1770003322511,145.3934,96.392,96.294,145.5404]
[1770003322706,50.8094651,96.41,96.324,145.4939]
[1770003322909,145.3448,96.424,96.324,145.4939]
[1770003323106,145.3831,96.399,96.304,145.5255]
[1770003323408,145.3824,96.399,96.301,145.5288]
[1770003323607,145.3824,96.399,96.239,291.2474]
[1770003323608,145.3284,96.435,96.343,145.4655]
[1770003323809,145.2673,96.476,96.379,145.4108]
[1770003324111,145.2034,96.518,96.375,145.4176]
[1770003324112,145.2813,96.466,96.375,145.4176]
[1770003324306,145.2634,96.478,96.373,145.4199]
[1770003324508,145.2482,96.488,96.398,145.3832]
[1770003324702,9.3392,96.47,96.373,154.769]
[1770003325012,145.1981,96.522,96.42,145.3502]
[1770003325209,145.1981,96.522,96.364,145.434]
[1770003325210,9.3327,96.537,96.446,145.3101]
[1770003325514,145.1939,96.524,96.43,50.8094651]
[1770003325713,145.2229,96.505,96.411,149.85138464]
[1770003325909,9.3357,96.505,96.416,145.3553]
[1770003326110,145.2314,96.5,96.412,145.362]
[1770003326311,154.5899,96.486,96.391,154.7405]
[1770003326910,145.2359,96.497,96.41,4.48838464]
[1770003327112,145.2359,96.497,96.393,145.3906]
[1770003327313,145.2506,96.487,96.393,145.3906]
[1770003327618,145.2059,96.516,96.422,145.3469]
[1770003327814,145.2059,96.516,96.416,4.46466385]
[1770003328112,145.1874,96.529,96.431,145.3338]
[1770003328312,145.2157,96.51,96.411,145.3627]
[1770003328615,145.2596,96.481,96.401,4.46466385]
[1770003328811,9.3372,96.49,96.402,145.3772]
[1770003329110,50.8094651,96.52,96.405,154.7178]
[1770003329311,145.103,96.585,96.43,4.46466385]
[1770003329312,145.1919,96.526,96.43,4.46466385]
[1770003329505,145.1916,96.526,96.43,4.46466385]
[1770003329706,9.3337,96.526,96.433,154.6726]
[1770003329907,145.1787,96.535,96.438,145.323]
[1770003330113,145.1994,96.521,96.434,4.50289968]
[1770003330312,145.2525,96.486,96.386,145.4008]
[1770003330509,145.2851,96.464,96.372,4.50289968]
[1770003330717,9.3376,96.485,96.396,145.3861]
[1770003331024,145.2264,96.503,96.408,145.3684]
[1770003331218,145.1942,96.524,96.428,145.3369]
[1770003331519,145.2278,96.502,96.41,145.3643]
[1770003331818,145.2267,96.503,96.405,145.372]
[1770003332014,145.26,96.481,96.388,4.49229655]
[1770003332318,50.8094651,96.53,96.42,145.3497]
[1770003332319,145.2095,96.514,96.42,145.3497]
[1770003332612,145.1363,96.563,96.406,4.49229655]
[1770003332613,50.8094651,96.56,96.406,4.49229655]
[1770003332913,145.2097,96.514,96.422,154.6898]
[1770003333218,145.2499,96.487,96.414,4.49229655]
[1770003333614,145.1628,96.545,96.38,4.52725729]
[1770003333615,145.2826,96.465,96.38,4.52725729]
[1770003334115,9.3396,96.465,96.383,9.3475]
[1770003334311,145.2168,96.509,96.411,145.363]
[1770003334511,145.2451,96.49,96.41,4.52725729]
[1770003334717,50.8094651,96.54,96.41,4.52725729]
[1770003334718,145.2303,96.5,96.41,4.52725729]
[1770003335015,145.2691,96.474,96.384,145.4046]
[1770003335215,145.254,96.485,96.394,145.3895]
[1770003335411,9.3375,96.487,96.391,145.3929]
[1770003335612,145.2571,96.482,96.393,145.3902]
[1770003335819,145.2265,96.503,96.405,145.3718]
[1770003336022,145.1634,96.545,96.447,145.3086]
[1770003336213,145.1776,96.535,96.438,149.86501605]
[1770003336414,145.2105,96.513,96.416,145.3558]
[1770003336715,145.2285,96.501,96.404,149.91591605]
[1770003336914,50.8094651,96.55,96.404,4.54211605]
[1770003336915,145.2433,96.492,96.404,4.54211605]
[1770003337115,145.2498,96.487,96.404,4.54211605]
[1770003337315,145.1963,96.523,96.434,145.3281]
[1770003337519,145.1801,96.534,96.434,145.3281]
[1770003337814,145.2034,96.518,96.43,145.3351]
[1770003338014,9.333,96.533,96.442,145.3172]
[1770003338209,145.1853,96.53,96.431,145.3329]
[1770003338518,145.2189,96.508,96.422,4.54779312]
[1770003339019,145.2181,96.508,96.422,4.54779312]
[1770003339220,50.8094651,96.55,96.422,4.54779312]
[1770003339221,145.2032,96.518,96.422,4.54779312]
[1770003339520,145.2032,96.518,96.427,145.3393]
[1770003339713,145.1878,96.529,96.427,145.3393]
[1770003340021,145.2239,96.505,96.427,4.53138168]
[1770003340222,145.2066,96.516,96.427,4.53138168]
[1770003340523,145.1712,96.54,96.442,145.3172]
[1770003340718,145.198,96.522,96.427,4.53138168]
[1770003340921,31.08,96.575,96.427,4.53138168]
[1770003340922,9.3333,96.53,96.428,145.3378]
[1770003341215,145.1803,96.533,96.437,145.3233]
[1770003341412,154.523,96.527,96.435,145.327]
[1770003341611,145.0523,96.619,96.464,145.2832]
[1770003341912,145.1569,96.549,96.457,4.51128195]
[1770003342112,145.1233,96.571,96.469,145.2758]
[1770003342320,145.1518,96.552,96.46,145.2895]
[1770003342514,145.1295,96.567,96.47,145.2747]
[1770003342718,145.1475,96.555,96.458,145.2928]
[1770003342913,145.1767,96.536,96.457,4.51128195]
[1770003343115,145.2119,96.512,96.426,4.51128195]
[1770003343318,145.2584,96.482,96.396,4.51128195]
[1770003343514,145.2481,96.488,96.397,145.3849]
[1770003343919,145.2716,96.473,96.371,145.4229]
[1770003344120,50.8094651,96.5,96.37,145.4245]
[1770003344422,145.301,96.453,96.351,145.4531]
[1770003344620,145.2847,96.464,96.362,145.4375]
[1770003344825,145.2912,96.46,96.362,145.4375]
[1770003345222,145.3164,96.443,96.35,145.4558]
[1770003345522,145.3355,96.43,96.338,4.49141529]
[1770003345729,145.3588,96.415,96.338,4.49141529]
[1770003345922,145.3409,96.427,96.339,145.4726]
[1770003346119,145.3251,96.437,96.339,145.4726]
[1770003346419,145.3251,96.437,96.273,145.5711]
[1770003346420,145.3036,96.452,96.357,4.49785777]
[1770003346621,145.3189,96.441,96.357,4.49785777]
[1770003346818,145.3517,96.42,96.323,4.49916386]
[1770003347022,145.281,96.467,96.385,4.49916386]
[1770003347223,9.3405,96.456,96.354,4.49916386]
[1770003347416,145.3339,96.431,96.354,4.49916386]
[1770003347622,145.3485,96.422,96.33,145.4848]
[1770003347926,145.3081,96.449,96.353,145.4513]
[1770003348131,50.8094651,96.48,96.344,145.4643]
[1770003348432,50.8094651,96.45,96.33,4.5017392]
[1770003348630,145.3203,96.44,96.336,145.4769]
[1770003348936,145.3117,96.446,96.352,145.452]
[1770003349328,145.279,96.468,96.373,145.4211]
[1770003349534,145.311,96.447,96.362,4.5017392]
[1770003349829,9.3414,96.447,96.362,4.5017392]
[1770003350036,145.2794,96.468,96.37,145.4249]
[1770003350336,9.3396,96.465,96.37,154.7736]
[1770003350539,145.3033,96.452,96.376,4.51208166]
[1770003350836,145.2164,96.509,96.376,4.51208166]
[1770003350837,145.2875,96.462,96.376,4.51208166]
[1770003351029,9.3409,96.452,96.376,4.51208166]
[1770003351229,145.3225,96.439,96.349,145.4574]
[1770003351429,50.8094651,96.48,96.342,4.51208166]
[1770003351430,145.3373,96.429,96.342,4.51208166]
[1770003351630,145.3213,96.44,96.347,145.4599]
[1770003351927,145.3199,96.441,96.353,145.4511]
[1770003352136,154.6618,96.441,96.35,145.4548]
[1770003352327,154.6618,96.441,96.349,9.3507]
[1770003352529,145.3398,96.428,96.342,4.51208166]
[1770003352830,145.3353,96.431,96.33,145.4861]
[1770003353137,145.3266,96.436,96.337,145.4743]
[1770003353333,50.8094651,96.44,96.298,4.4693333]
[1770003353631,145.3934,96.392,96.299,145.5316]
[1770003353835,145.4075,96.383,96.298,4.4693333]
[1770003354042,145.4074,96.383,96.298,4.4693333]
[1770003354238,145.4173,96.376,96.298,4.4693333]
[1770003354431,145.3881,96.396,96.294,145.5393]
[1770003354632,145.2776,96.469,96.324,145.4939]
[1770003354633,145.3583,96.415,96.324,145.4939]
[1770003354832,154.7326,96.397,96.304,4.46163176]
[1770003355035,145.3731,96.405,96.309,145.517]
[1770003355228,145.345,96.424,96.319,145.502]
[1770003355538,154.6711,96.435,96.335,145.4776]
[1770003355833,145.3252,96.437,96.341,145.4687]
[1770003356042,154.6753,96.432,96.344,145.4641]
[1770003356240,145.2809,96.467,96.374,145.4187]
[1770003356440,145.3127,96.446,96.353,4.42626407]
[1770003356637,50.8094651,96.5,96.34,50.8094651]
[1770003356638,145.2929,96.459,96.367,149.85626407]
[1770003356837,145.307,96.449,96.367,4.42626407]
[1770003357140,145.32,96.441,96.367,4.42626407]
[1770003357634,145.3172,96.443,96.367,4.42626407]
[1770003358231,145.3589,96.415,96.334,4.42421771]
[1770003358432,145.3332,96.432,96.339,145.4721]
[1770003358633,50.8094651,96.47,96.335,4.42421771]
[1770003358634,154.6633,96.44,96.348,4.42421771]
[1770003358830,154.6633,96.44,96.349,145.4568]
[1770003359230,9.3404,96.457,96.366,145.4314]
[1770003359440,145.3128,96.445,96.356,145.4467]
[1770003359840,145.331,96.433,96.348,4.42421771]
[1770003360040,145.3235,96.438,96.348,4.42421771]
[1770003360236,145.3064,96.45,96.356,145.4468]
[1770003360438,145.2841,96.465,96.373,4.42224328]
[1770003360739,9.3394,96.468,96.381,4.42224328]
[1770003360937,145.1968,96.523,96.42,145.3501]
[1770003361135,145.1858,96.53,96.435,145.3263]
[1770003361441,50.8094651,96.56,96.427,4.42224328]
[1770003361442,145.2172,96.509,96.427,4.42224328]
[1770003361641,145.2266,96.503,96.427,4.42224328]
[1770003361943,145.3144,96.444,96.364,4.43219459]
[1770003362137,145.2649,96.477,96.388,4.43219459]
[1770003362341,145.2649,96.477,96.318,145.504]
[1770003362342,145.2043,96.518,96.42,145.3499]
[1770003362544,145.1826,96.532,96.442,4.43219459]
[1770003362739,145.1833,96.531,96.439,4.43219459]
[1770003362937,154.5508,96.51,96.439,4.43219459]
[1770003363133,145.1934,96.525,96.439,4.43219459]
[1770003363438,154.5408,96.516,96.439,4.43219459]
[1770003363640,145.2425,96.492,96.403,4.4029706]
[1770003363841,145.2159,96.51,96.417,145.3542]
[1770003364142,9.3353,96.51,96.421,149.7515706]
[1770003364333,145.1861,96.53,96.439,4.4029706]
[1770003364538,9.3328,96.535,96.453,4.4029706]
[1770003364732,50.8094651,96.59,96.453,4.4029706]
[1770003364935,145.177,96.536,96.453,4.4029706]
[1770003365339,50.8094651,96.56,96.42,4.31195993]
[1770003365541,145.1758,96.536,96.44,145.32]
[1770003365844,9.3324,96.539,96.455,4.31195993]
[1770003366242,145.1974,96.522,96.432,4.31195993]
[1770003366442,9.3325,96.538,96.455,4.31195993]
[1770003366643,145.1496,96.554,96.467,4.31195993]
[1770003366842,145.1772,96.536,96.467,4.31195993]
[1770003367044,154.5099,96.536,96.467,4.31195993]
[1770003367244,154.5099,96.536,96.44,4.31195993]
[1770003367451,145.108,96.582,96.49,4.30652704]
[1770003367646,50.8094651,96.65,96.515,145.2063]
[1770003367839,145.0405,96.626,96.536,4.30734919]
[1770003368045,145.0767,96.602,96.52,50.8094651]
[1770003368247,145.0669,96.609,96.52,50.8094651]
[1770003368552,145.0975,96.589,96.507,4.30734919]
[1770003368751,154.4395,96.58,96.507,4.30734919]
[1770003368946,145.1051,96.584,96.482,145.2564]
[1770003369148,145.1135,96.578,96.483,4.30734919]
[1770003369346,154.4422,96.578,96.483,4.30734919]
[1770003369542,145.1297,96.567,96.483,4.30734919]
[1770003369741,145.131,96.566,96.483,4.30734919]
[1770003369941,145.1277,96.568,96.483,4.30734919]
[1770003370345,154.4949,96.545,96.454,4.29288463]
[1770003370540,145.1447,96.557,96.459,145.2913]
[1770003370752,145.1547,96.55,96.458,4.29288463]
[1770003371145,154.5167,96.531,96.458,4.29288463]
[1770003371339,145.1169,96.576,96.43,50.8094651]
[1770003371544,145.1865,96.529,96.438,4.29009255]
[1770003371848,145.2014,96.519,96.438,4.29009255]
[1770003372047,145.2263,96.503,96.402,4.29009255]
[1770003372243,154.5622,96.503,96.404,4.29009255]
[1770003372642,145.2343,96.498,96.404,4.29009255]
[1770003372849,145.2375,96.495,96.404,4.29009255]
[1770003373043,145.2574,96.482,96.404,4.29009255]
[1770003373244,50.8094651,96.52,96.404,4.29009255]
[1770003373245,154.5973,96.481,96.404,4.29009255]
[1770003373651,9.3381,96.481,96.404,4.29009255]
[1770003373852,9.3365,96.497,96.412,4.32672508]
[1770003374053,145.2316,96.499,96.421,4.32672508]
[1770003374446,9.3363,96.499,96.421,4.32672508]
[1770003374942,145.2159,96.51,96.421,4.32672508]
[1770003375142,145.1905,96.527,96.439,4.32672508]
[1770003375545,9.3325,96.538,96.446,145.3103]
[1770003375744,145.1258,96.57,96.474,4.37126323]
[1770003375943,145.1163,96.576,96.474,4.37126323]
[1770003376143,154.4865,96.55,96.444,4.37126323]
[1770003376347,145.1671,96.542,96.448,4.37126323]
[1770003376551,145.1395,96.561,96.464,4.37126323]
[1770003376749,145.1602,96.547,96.464,4.37126323]
[1770003376949,145.1615,96.546,96.464,4.37126323]
[1770003377452,145.2456,96.49,96.399,4.38675835]
[1770003377657,145.2582,96.482,96.399,4.38675835]
[1770003377853,145.1809,96.533,96.399,4.38675835]
[1770003377854,145.2667,96.476,96.399,4.38675835]
[1770003378054,145.2709,96.473,96.399,4.38675835]
[1770003378355,145.3055,96.45,96.367,4.38675835]
[1770003378554,33.85583208,96.47,96.367,4.38675835]
[1770003378555,145.3298,96.434,96.367,4.38675835]
[1770003378756,145.3298,96.434,96.336,4.38675835]
[1770003378757,145.3295,96.434,96.336,4.38675835]
[1770003379059,145.419,96.375,96.329,8.636e-05]